bitfinex/quotes_SOLUSD_20240912
["timestamp","ask_amount","ask_price","bid_price","bid_amount"]
[1726114644909,1.2682051,136.32,136.31,30.504874]
[1726114645594,1.2682051,136.32,136.31,30.630364]
[1726114647217,1.2682051,136.32,136.31,30.504874]
[1726114653930,0.2682051,136.36,136.35,79.882384]
[1726114655323,0.2682051,136.36,136.35,80.133364]
[1726114655521,7.66260922,136.44,136.4,67.073]
[1726114655706,0.2682051,136.45,136.44,6.5963]
[1726114655904,0.2682051,136.49,136.48,6.5943]
[1726114656128,0.2682051,136.49,136.48,44.91333593]
[1726114656452,0.2682051,136.49,136.48,94.37103593]
[1726114656605,24.75830529,136.54,136.49,14.54215193]
[1726114656606,3.18601179,136.54,136.49,14.54215193]
[1726114656922,3.18601179,136.54,136.45,6.5953]
[1726114656923,0.0735147,136.5,136.45,6.5953]
[1726114657125,22.0363147,136.5,136.45,6.5953]
[1726114657434,0.0735147,136.5,136.47,23.776884]
[1726114657603,0.0735147,136.5,136.48,14.54215193]
[1726114657808,0.0735147,136.5,136.49,23.776884]
[1726114659136,0.0735147,136.5,136.46,23.776884]
[1726114659429,0.0735147,136.5,136.48,23.776884]
[1726114660621,0.0735147,136.5,136.42,14.54215193]
[1726114660932,16.5573147,136.5,136.37,15.37580161]
[1726114661136,6.5963,136.44,136.39,14.74414373]
[1726114662312,15.4773,136.47,136.39,14.74414373]
[1726114662519,6.5973,136.42,136.39,0.2019918]
[1726114662725,6.4772,136.45,136.39,0.2019918]
[1726114663118,6.5982,136.4,136.39,0.2019918]
[1726114664119,22.8319,136.4,136.39,0.2019918]
[1726114667122,16.2337,136.4,136.39,0.2019918]
[1726114668549,22.8319,136.4,136.39,0.2019918]
[1726114668921,16.2337,136.4,136.39,0.2019918]
[1726114672543,7.66306869,136.42,136.39,0.2019918]
[1726114672924,23.221,136.44,136.39,0.2019918]
[1726114673346,30.88456736,136.44,136.39,0.2019918]
[1726114673552,6.5968,136.43,136.39,0.2019918]
[1726114674353,30.88456736,136.44,136.39,6.8006918]
[1726114674746,24.28826736,136.44,136.4,23.776884]
[1726114675430,30.88456736,136.44,136.4,23.776884]
[1726114675634,24.28826736,136.44,136.4,30.374884]
[1726114676437,30.88456736,136.44,136.4,23.776884]
[1726114676831,7.66356736,136.44,136.4,23.776884]
[1726114677255,7.66356736,136.44,136.4,30.375084]
[1726114677553,7.66356736,136.44,136.41,1.4659483]
[1726114677739,7.66356736,136.44,136.41,8.0635483]
[1726114678054,6.4772,136.45,136.41,8.0635483]
[1726114678432,6.5954,136.46,136.41,8.0635483]
[1726114680235,7.66259296,136.47,136.46,6.5953]
[1726114680565,0.0735147,136.5,136.49,30.370684]
[1726114681734,0.0735147,136.5,136.49,30.496174]
[1726114681934,3.92975686,136.58,136.51,6.5926]
[1726114682153,0.2755065,136.59,136.52,23.902374]
[1726114682330,0.2755065,136.59,136.52,24.027864]
[1726114683751,6.59,136.57,136.52,23.776884]
[1726114683967,6.5907,136.56,136.52,23.776884]
[1726114684138,6.591,136.55,136.52,23.776884]
[1726114684336,6.5915,136.54,136.52,23.776884]
[1726114684659,16.7484065,136.59,136.48,390.3]
[1726114684835,6.5934,136.5,136.48,390.3]
[1726114685030,6.5934,136.5,136.45,22.3621]
[1726114685335,6.5914,136.55,136.45,44.4321]
[1726114685543,16.3031,136.57,136.47,39.12759091]
[1726114685736,6.5921,136.53,136.47,39.12759091]
[1726114686061,32.7784,136.57,136.45,412.6621]
[1726114686266,20.0,136.56,136.45,390.3]
[1726114686483,6.5934,136.5,136.45,390.3]
[1726114686668,6.5934,136.5,136.44,6.8717065]
[1726114686968,6.594,136.49,136.44,6.8717065]
[1726114687149,6.594,136.49,136.44,0.2755065]
[1726114687358,6.594,136.49,136.44,24.0523905]
[1726114687654,6.5934,136.5,136.44,30.6484905]
[1726114687960,6.5934,136.5,136.46,23.776884]
[1726114689167,16.479,136.54,136.44,0.2755065]
[1726114689336,6.1689,136.53,136.44,0.2755065]
[1726114690158,6.5938,136.5,136.44,6.8714065]
[1726114691143,16.4825,136.51,136.44,0.2755065]
[1726114691472,6.5953,136.46,136.44,0.2755065]
[1726114692347,16.4825,136.51,136.44,0.2755065]
[1726114692646,6.5952,136.47,136.44,0.2755065]
[1726114692835,6.5953,136.46,136.44,0.2755065]
[1726114693662,6.5945,136.48,136.44,0.2755065]
[1726114694166,6.595,136.47,136.44,0.2755065]
[1726114695262,6.5954,136.46,136.44,0.2755065]
[1726114696551,6.5958,136.45,136.44,0.2755065]
[1726114703161,14.25340475,136.45,136.44,0.2755065]
[1726114704157,7.65760475,136.45,136.44,0.2755065]
[1726114705693,6.5943,136.49,136.44,0.2755065]
[1726114705896,6.5943,136.49,136.44,6.8717065]
[1726114706101,30.84110314,136.5,136.45,6.5954]
[1726114706872,6.5939,136.49,136.44,23.3614065]
[1726114709597,6.5944,136.48,136.44,16.7652065]
[1726114710592,6.595,136.47,136.44,0.2755065]
[1726114710994,30.84110314,136.5,136.44,0.2755065]
[1726114713197,6.5943,136.48,136.44,6.8717065]
[1726114713370,6.5943,136.48,136.44,0.2755065]
[1726114714395,30.84110314,136.5,136.44,6.8716065]
[1726114714396,37.43490314,136.5,136.44,6.8716065]
[1726114715395,37.43490314,136.5,136.45,6.5957]
[1726114715785,6.5939,136.49,136.45,6.5957]
[1726114716403,7.65421153,136.48,136.45,6.5957]
[1726114717508,6.5939,136.49,136.45,6.5957]
[1726114718800,6.5939,136.49,136.45,6.6497665]
[1726114718987,24.29405303,136.5,136.46,6.5951]
[1726114719372,30.88755303,136.5,136.45,30.4266505]
[1726114719791,24.29405303,136.5,136.46,6.5952]
[1726114719997,7.65375303,136.5,136.47,6.5947]
[1726114720194,6.5925,136.52,136.48,6.5943]
[1726114720392,6.5925,136.52,136.47,6.5947]
[1726114721891,6.5925,136.52,136.48,6.5943]
[1726114722198,29.86542438,136.53,136.48,6.5943]
[1726114723096,29.86542438,136.53,136.49,6.5938]
[1726114725103,22.2108,136.53,136.48,6.5943]
[1726114727514,22.2108,136.53,136.49,6.5938]
[1726114727682,6.592,136.53,136.49,30.370684]
[1726114727888,6.3634,136.54,136.49,30.370684]
[1726114727889,6.5915,136.54,136.49,30.370684]
[1726114729408,6.592,136.53,136.49,30.370684]
[1726114729591,16.3175,136.56,136.47,6.5945]
[1726114729788,20.0,136.55,136.47,6.5945]
[1726114730602,6.5925,136.52,136.47,6.5945]
[1726114731195,6.5929,136.51,136.47,6.5945]
[1726114731522,6.5934,136.5,136.46,6.5952]
[1726114731721,20.0,136.55,136.45,0.0540665]
[1726114731880,16.4805,136.53,136.45,6.6497665]
[1726114732210,6.5934,136.5,136.45,0.0540665]
[1726114732694,6.5941,136.49,136.45,0.0540665]
[1726114733008,6.5934,136.5,136.45,6.6498665]
[1726114733198,6.5929,136.51,136.46,6.5953]
[1726114733404,20.0,136.55,136.47,6.5948]
[1726114733604,7.65164379,136.51,136.47,6.5948]
[1726114733811,7.65164379,136.51,136.47,6.6488665]
[1726114734002,6.5928,136.52,136.47,6.6488665]
[1726114734202,7.65158162,136.51,136.47,6.6488665]
[1726114734610,14.24448162,136.51,136.47,0.0540665]
[1726114734813,7.65158162,136.51,136.47,0.0540665]
[1726114736209,6.5939,136.49,136.47,0.0540665]
[1726114737403,6.5934,136.5,136.47,0.0540665]
[1726114739189,6.5938,136.49,136.47,0.0540665]
[1726114741204,6.5943,136.48,136.47,0.0540665]
[1726114744224,6.5939,136.49,136.47,0.0540665]
[1726114744404,7.65000722,136.49,136.47,0.0540665]
[1726114745225,31.9096,136.54,136.47,0.0540665]
[1726114745541,6.593,136.51,136.47,0.0540665]
[1726114745831,6.5934,136.5,136.47,0.0540665]
[1726114746546,6.5943,136.48,136.47,0.0540665]
[1726114746912,7.64706602,136.52,136.47,0.0540665]
[1726114746913,6.5938,136.5,136.47,0.0540665]
[1726114747108,6.5929,136.51,136.47,0.0540665]
[1726114748414,6.5934,136.5,136.47,0.0540665]
[1726114749435,6.5929,136.51,136.47,0.0540665]
[1726114750126,14.23956602,136.52,136.47,6.6487665]
[1726114750335,14.23956602,136.52,136.47,30.4256505]
[1726114751035,7.64706602,136.52,136.48,6.5942]
[1726114752399,14.23956602,136.52,136.47,46.9117505]
[1726114753611,14.23956602,136.52,136.47,16.5401665]
[1726114753612,6.5929,136.51,136.47,16.5401665]
[1726114754242,6.5936,136.5,136.47,0.0540665]
[1726114756522,6.5942,136.49,136.47,0.0540665]
[1726114756930,15.4306,136.54,136.47,0.0540665]
[1726114757105,7.65023689,136.5,136.47,0.0540665]
[1726114757529,20.0,136.53,136.47,0.0540665]
[1726114757719,7.64467355,136.5,136.47,0.0540665]
[1726114757924,20.0,136.53,136.47,0.0540665]
[1726114758324,7.64424449,136.5,136.47,0.0540665]
[1726114758535,20.0,136.53,136.47,0.0540665]
[1726114758918,7.65152412,136.51,136.47,0.0540665]
[1726114759541,7.65152412,136.51,136.47,6.6487665]
[1726114760040,7.65152412,136.51,136.49,6.5938]
[1726114760240,7.65152412,136.51,136.48,30.371184]
[1726114760610,7.65152412,136.51,136.48,6.5943]
[1726114761227,7.65152412,136.51,136.47,23.1351665]
[1726114761820,7.65152412,136.51,136.48,30.371184]
[1726114762046,7.65152412,136.51,136.47,23.1350665]
[1726114762345,14.24452412,136.51,136.47,16.5403665]
[1726114762712,14.24452412,136.51,136.47,23.1351665]
[1726114763113,14.24452412,136.51,136.47,16.5403665]
[1726114765436,7.65152412,136.51,136.48,6.5943]
[1726114765921,7.65152412,136.51,136.47,16.5403665]
[1726114767345,7.65152412,136.51,136.47,23.1350665]
[1726114770944,7.65152412,136.51,136.48,6.5943]
[1726114771146,7.65152412,136.51,136.48,30.371184]
[1726114771351,6.592,136.53,136.48,30.371184]
[1726114771553,14.25356943,136.53,136.48,30.371184]
[1726114771751,14.25356943,136.53,136.49,6.5937]
[1726114773248,14.25356943,136.53,136.48,30.371084]
[1726114773846,6.5925,136.52,136.47,23.1350665]
[1726114779940,6.5925,136.52,136.48,30.371084]
[1726114782240,6.5925,136.52,136.48,6.5942]
[1726114783551,6.5925,136.52,136.47,23.1351665]
[1726114784094,7.66228992,136.51,136.47,23.1351665]
[1726114784843,7.66228992,136.51,136.48,31.83552807]
[1726114785041,22.0221,136.54,136.49,6.5937]
[1726114785247,6.5921,136.53,136.48,23.776884]
[1726114785455,14.25073951,136.53,136.48,23.776884]
[1726114785655,14.25073951,136.53,136.48,30.371084]
[1726114787866,7.65863951,136.53,136.49,6.5937]
[1726114788542,7.65863951,136.53,136.5,8.0565471]
[1726114788756,15.4306,136.54,136.5,6.5929]
[1726114789355,20.8631407,136.55,136.54,16.4786]
[1726114789356,7.6602407,136.55,136.54,16.4786]
[1726114789547,0.2142959,136.58,136.54,40.255484]
[1726114789752,6.8038959,136.58,136.52,6.592]
[1726114789946,6.5902,136.57,136.52,6.592]
[1726114791869,6.5902,136.57,136.53,23.776884]
[1726114792163,7.87288928,136.58,136.5,23.776884]
[1726114792164,6.5915,136.54,136.5,23.776884]
[1726114792369,6.5915,136.54,136.49,6.0934]
[1726114792679,6.5904,136.57,136.51,6.5924]
[1726114792842,6.5904,136.57,136.53,23.776884]
[1726114793043,14.46248928,136.58,136.53,30.368784]
[1726114794569,7.87288928,136.58,136.54,6.5914]
[1726114795476,7.87288928,136.58,136.53,30.368684]
[1726114795650,14.46238928,136.58,136.53,30.368684]
[1726114797074,6.59,136.57,136.53,23.776884]
[1726114797448,7.87288928,136.58,136.49,16.4844]
[1726114797774,7.87288928,136.58,136.5,6.5933]
[1726114797775,6.5914,136.55,136.5,6.5933]
[1726114800080,6.5905,136.56,136.51,6.5929]
[1726114800255,7.64555509,136.54,136.52,30.369184]
[1726114800460,0.2142959,136.58,136.53,30.368784]
[1726114800661,0.2142959,136.58,136.55,23.776884]
[1726114800865,14.4490347,136.58,136.53,23.776884]
[1726114801173,14.4490347,136.58,136.53,30.368784]
[1726114801954,7.8594347,136.58,136.55,23.776884]
[1726114802685,7.8594347,136.58,136.53,23.0707]
[1726114802686,14.4489347,136.58,136.53,23.0707]
[1726114802886,6.5902,136.57,136.54,23.776884]
[1726114803053,14.4490347,136.58,136.54,23.776884]
[1726114803882,7.8594347,136.58,136.54,30.368184]
[1726114804262,14.4489347,136.58,136.54,30.368184]
[1726114804465,14.4489347,136.58,136.54,23.776884]
[1726114805366,15.8823,136.56,136.49,16.4839]
[1726114805572,15.8823,136.56,136.49,23.0774]
[1726114805766,15.8823,136.56,136.49,16.4839]
[1726114805964,15.8823,136.56,136.52,6.5924]
[1726114806279,12.6975,136.57,136.53,6.5919]
[1726114806280,6.1074,136.57,136.53,6.5919]
[1726114806594,12.6974,136.57,136.52,6.5923]
[1726114806778,12.6974,136.57,136.53,23.776884]
[1726114807679,6.1074,136.57,136.51,16.4815]
[1726114807986,6.1074,136.57,136.51,6.5929]
[1726114807987,6.5909,136.56,136.51,6.5929]
[1726114808163,6.5909,136.56,136.52,23.776884]
[1726114808368,6.591,136.55,136.5,6.5933]
[1726114808659,6.1074,136.57,136.5,6.5933]
[1726114808860,6.1074,136.57,136.51,6.5927]
[1726114809963,6.1074,136.57,136.52,23.776884]
[1726114810168,6.5909,136.56,136.52,23.776884]
[1726114810988,6.5911,136.55,136.52,23.776884]
[1726114811162,6.5911,136.55,136.51,23.776884]
[1726114811362,6.1074,136.57,136.51,23.776884]
[1726114811981,6.1074,136.57,136.51,30.369684]
[1726114812178,12.6975,136.57,136.53,23.776884]
[1726114812689,12.6975,136.57,136.53,30.368684]
[1726114813777,6.1074,136.57,136.53,30.368684]
[1726114814170,7.8594347,136.58,136.55,23.776884]
[1726114814371,0.2142959,136.58,136.55,31.8320931]
[1726114815398,0.2142959,136.58,136.55,23.776884]
[1726114816161,6.8037959,136.58,136.55,23.776884]
[1726114816567,6.8037959,136.58,136.54,23.776884]
[1726114820576,6.5901,136.57,136.54,23.776884]
[1726114820874,6.5901,136.57,136.53,23.776884]
[1726114823097,0.2142959,136.58,136.53,23.776884]
[1726114823098,0.2142959,136.58,136.57,23.776884]
[1726114823399,0.2142959,136.58,136.57,31.13144583]
[1726114823583,0.2142959,136.58,136.57,30.366884]
[1726114824508,0.2142959,136.58,136.57,23.776884]
[1726114824890,0.2142959,136.58,136.56,23.776884]
[1726114825083,0.2142959,136.58,136.55,16.4772]
[1726114826278,0.2142959,136.58,136.55,23.0677]
[1726114826507,0.2142959,136.58,136.56,30.367284]
[1726114828687,0.2142959,136.58,136.56,23.776884]
[1726114829123,0.2142959,136.58,136.52,15.0249]
[1726114829124,6.59,136.57,136.52,6.592]
[1726114830202,0.2142959,136.58,136.51,23.0741]
[1726114831185,6.591,136.55,136.51,16.4813]
[1726114831610,6.591,136.55,136.48,21.8226]
[1726114831611,6.2843,136.56,136.48,16.4857]
[1726114831978,6.592,136.53,136.48,23.0798]
[1726114832181,6.5927,136.52,136.47,0.0540665]
[1726114832489,6.2843,136.56,136.47,0.0540665]
[1726114832793,6.2843,136.56,136.49,23.776884]
[1726114833192,6.2843,136.56,136.51,23.776884]
[1726114833193,12.8748,136.56,136.51,23.776884]
[1726114833713,6.5924,136.53,136.47,0.0540665]
[1726114833890,6.5924,136.53,136.47,6.6485665]
[1726114834082,7.64824706,136.53,136.47,16.5409665]
[1726114834790,7.64824706,136.53,136.5,23.776884]
[1726114835293,7.64824706,136.53,136.48,23.776884]
[1726114835694,7.64824706,136.53,136.48,30.371184]
[1726114836100,14.24024706,136.53,136.48,30.371184]
[1726114836513,7.64824706,136.53,136.49,6.5938]
[1726114836880,7.64824706,136.53,136.49,6.5937]
[1726114837119,6.591,136.55,136.49,6.5937]
[1726114837336,12.8748,136.56,136.5,6.5933]
[1726114837482,7.65575822,136.55,136.5,6.5933]
[1726114837686,7.65575822,136.55,136.52,23.776884]
[1726114838915,7.65575822,136.55,136.53,23.776884]
[1726114839206,15.6757,136.57,136.53,30.368584]
[1726114839414,0.2142959,136.58,136.56,23.776884]
[1726114841182,0.2142959,136.58,136.57,30.366884]
[1726114844515,0.2142959,136.58,136.57,23.776884]
[1726114844694,0.2142959,136.58,136.55,16.4763]
[1726114844893,0.2142959,136.58,136.55,23.0672]
[1726114846021,0.2142959,136.58,136.56,6.5902]
[1726114846315,0.2142959,136.58,136.57,23.776884]
[1726114848613,0.2142959,136.58,136.56,23.776884]
[1726114851642,0.2142959,136.58,136.57,30.366884]
[1726114855431,0.2142959,136.58,136.55,16.4763]
[1726114855636,0.2142959,136.58,136.55,23.0671]
[1726114857240,0.2142959,136.58,136.56,23.776884]
[1726114861445,0.2142959,136.58,136.54,23.776884]
[1726114861644,6.5904,136.57,136.53,23.776884]
[1726114862231,6.8037959,136.58,136.53,30.368684]
[1726114863745,7.81617539,136.58,136.55,23.776884]
[1726114863922,0.2142959,136.58,136.55,23.776884]
[1726114865323,0.2142959,136.58,136.57,23.776884]
[1726114865647,0.2142959,136.58,136.55,30.367684]
[1726114865822,0.2142959,136.58,136.55,23.776884]
[1726114867133,6.8037959,136.58,136.55,23.776884]
[1726114867335,6.8037959,136.58,136.53,6.5919]
[1726114868043,6.8037959,136.58,136.54,6.5914]
[1726114868421,0.2142959,136.58,136.54,6.5914]
[1726114868635,0.2142959,136.58,136.55,23.776884]
[1726114869850,6.8038959,136.58,136.55,23.776884]
[1726114870069,0.2142959,136.58,136.55,6.5908]
[1726114870221,0.2142959,136.58,136.54,23.776884]
[1726114870420,0.2142959,136.58,136.54,30.368184]
[1726114871349,6.8038959,136.58,136.54,30.368184]
[1726114871533,6.8038959,136.58,136.53,23.0709]
[1726114872627,6.8038959,136.58,136.54,23.776884]
[1726114873034,6.59,136.57,136.54,23.776884]
[1726114873233,6.5905,136.56,136.53,23.776884]
[1726114873740,6.5905,136.56,136.52,23.776884]
[1726114874747,6.59,136.57,136.52,6.5923]
[1726114875044,21.9607959,136.58,136.53,31.83329511]
[1726114875546,15.3711959,136.58,136.55,23.776884]
[1726114876218,21.9607959,136.58,136.55,23.776884]
[1726114876422,6.5901,136.57,136.55,23.776884]
[1726114876653,21.9607959,136.58,136.54,23.776884]
[1726114877731,0.2142959,136.58,136.54,40.254784]
[1726114878648,0.2142959,136.58,136.57,23.776884]
[1726114878827,0.2142959,136.58,136.54,40.254784]
[1726114878828,0.2142959,136.58,136.55,6.5909]
[1726114879151,0.2142959,136.58,136.56,30.367284]
[1726114882058,0.2142959,136.58,136.57,6.59]
[1726114882345,0.2142959,136.58,136.57,30.366884]
[1726114885740,0.2142959,136.58,136.57,23.776884]
[1726114890761,0.2142959,136.58,136.57,30.366884]
[1726114897261,0.2142959,136.58,136.54,6.5914]
[1726114898147,0.2142959,136.58,136.55,6.5909]
[1726114898352,22.2149959,136.58,136.52,6.5923]
[1726114898747,6.5904,136.57,136.51,6.5928]
[1726114898949,22.2149959,136.58,136.5,16.483]
[1726114899200,35.7298,136.57,136.49,5.82687136]
[1726114899333,16.4781,136.55,136.47,0.0540665]
[1726114899536,6.5928,136.52,136.47,0.0540665]
[1726114899853,6.5928,136.52,136.47,6.6488665]
[1726114901170,6.5928,136.52,136.47,0.0540665]
[1726114903883,6.5916,136.54,136.47,16.5408665]
[1726114904063,6.2709,136.56,136.47,16.5408665]
[1726114904265,6.5915,136.54,136.48,30.370984]
[1726114904587,26.591,136.55,136.5,23.776884]
[1726114904891,6.591,136.55,136.5,30.370084]
[1726114906164,6.2709,136.56,136.48,6.5939]
[1726114907289,6.5923,136.53,136.48,6.5939]
[1726114908063,7.66019775,136.52,136.48,6.5939]
[1726114908263,7.66019775,136.52,136.5,16.4834]
[1726114908464,6.2709,136.56,136.5,16.4834]
[1726114908665,6.5914,136.54,136.48,23.776884]
[1726114908899,7.63549239,136.54,136.48,23.776884]
[1726114909092,7.63549239,136.54,136.49,6.5934]
[1726114909395,14.22719239,136.54,136.49,6.5934]
[1726114909592,7.63549239,136.54,136.48,23.776884]
[1726114909896,6.592,136.53,136.48,30.371184]
[1726114912774,7.63549239,136.54,136.49,6.5938]
[1726114912977,7.63549239,136.54,136.5,30.370184]
[1726114913181,7.63549239,136.54,136.5,6.5933]
[1726114914670,7.63549239,136.54,136.51,6.5927]
[1726114915666,7.63549239,136.54,136.5,23.0764]
[1726114920183,6.2709,136.56,136.52,23.776884]
[1726114920584,13.90458222,136.56,136.51,23.776884]
[1726114921265,13.90458222,136.56,136.52,6.5923]
[1726114921578,13.90458222,136.56,136.53,23.776884]
[1726114921780,13.90458222,136.56,136.53,30.368784]
[1726114921975,7.63368222,136.56,136.53,30.368784]
[1726114922780,7.63368222,136.56,136.51,6.5925]
[1726114923304,7.63368222,136.56,136.52,23.776884]
[1726114923795,14.22428222,136.56,136.52,23.776884]
[1726114923982,7.63368222,136.56,136.52,40.257784]
[1726114924182,14.22418222,136.56,136.52,40.257784]
[1726114924991,14.22418222,136.56,136.52,23.776884]
[1726114925493,7.63368222,136.56,136.52,30.369284]
[1726114926395,7.63368222,136.56,136.53,6.5918]
[1726114927291,7.63368222,136.56,136.54,23.776884]
[1726114928975,0.2142959,136.58,136.54,30.367884]
[1726114929175,7.64746329,136.57,136.54,23.776884]
[1726114929676,6.5907,136.56,136.51,6.5925]
[1726114930469,6.5909,136.55,136.51,6.5925]
[1726114930672,6.5906,136.56,136.51,6.5925]
[1726114930878,14.23756329,136.57,136.52,30.369284]
[1726114931084,7.64746329,136.57,136.54,23.776884]
[1726114933591,0.2142959,136.58,136.57,30.366884]
[1726114934396,0.2142959,136.58,136.57,23.776884]
[1726114934604,0.2142959,136.58,136.56,30.367284]
[1726114936476,0.2142959,136.58,136.52,16.4807]
[1726114936684,16.6631959,136.58,136.52,16.4807]
[1726114937291,6.59,136.57,136.53,6.5919]
[1726114937879,23.1411959,136.58,136.54,30.368284]
[1726114938506,23.1411959,136.58,136.52,23.0727]
[1726114938680,29.7308959,136.58,136.53,23.776884]
[1726114939189,6.5901,136.57,136.53,23.776884]
[1726114940407,29.7307959,136.58,136.53,30.368684]
[1726114942381,6.5901,136.57,136.53,23.776884]
[1726114942786,6.5905,136.56,136.53,23.776884]
[1726114943416,6.59,136.57,136.53,23.776884]
[1726114944085,14.22477181,136.57,136.53,23.776884]
[1726114944288,14.22477181,136.57,136.52,23.0729]
[1726114944781,14.22477181,136.57,136.53,23.776884]
[1726114947090,6.5905,136.56,136.52,16.4807]
[1726114947691,6.591,136.55,136.52,23.776884]
[1726114948305,6.5905,136.56,136.52,23.776884]
[1726114949388,6.5905,136.56,136.51,6.5928]
[1726114950195,14.22477181,136.57,136.52,30.369284]
[1726114954006,7.63477181,136.57,136.54,23.776884]
[1726114954218,7.63477181,136.57,136.56,40.253084]
[1726114954514,7.63477181,136.57,136.56,23.776884]
[1726114954716,7.63477181,136.57,136.53,23.0714]
[1726114955013,7.63477181,136.57,136.54,23.776884]
[1726114955221,7.63477181,136.57,136.55,16.4763]
[1726114955395,7.63477181,136.57,136.49,22.58690121]
[1726114955722,7.63477181,136.57,136.51,23.776884]
[1726114956297,7.63477181,136.57,136.53,6.5919]
[1726114956500,7.63477181,136.57,136.52,23.073]
[1726114956702,7.63477181,136.57,136.53,23.776884]
[1726114958223,7.63477181,136.57,136.53,30.368684]
[1726114958715,14.22477181,136.57,136.52,23.073]
[1726114959822,7.63477181,136.57,136.53,30.368784]
[1726114961026,7.63477181,136.57,136.53,6.5919]
[1726114961517,14.22477181,136.57,136.52,16.4807]
[1726114962291,14.22477181,136.57,136.52,23.0728]
[1726114962717,7.63477181,136.57,136.53,6.5915]
[1726114963399,14.22497181,136.57,136.52,23.073]
[1726114963900,14.22497181,136.57,136.53,30.368784]
[1726114964101,7.63477181,136.57,136.53,30.368784]
[1726114965910,14.22477181,136.57,136.53,23.776884]
[1726114967924,14.22477181,136.57,136.52,23.073]
[1726114968131,6.5909,136.56,136.5,6.593]
[1726114968451,6.5909,136.56,136.51,6.5928]
[1726114968452,6.5906,136.56,136.51,6.5928]
[1726114968616,7.63477181,136.57,136.5,6.5933]
[1726114968617,6.591,136.55,136.5,6.5933]
[1726114968811,6.5916,136.54,136.49,16.4841]
[1726114970338,6.5916,136.54,136.49,23.0775]
[1726114970719,6.5919,136.53,136.49,16.4841]
[1726114970926,21.8208,136.53,136.49,16.4841]
[1726114973533,15.2289,136.53,136.49,23.0779]
[1726114973938,15.2289,136.53,136.51,6.5924]
[1726114974140,15.2289,136.53,136.5,6.5933]
[1726114974652,15.2289,136.53,136.49,16.4841]
[1726114975630,21.821,136.53,136.49,16.4841]
[1726114976637,15.2289,136.53,136.49,23.0779]
[1726114979827,15.2289,136.53,136.51,6.5928]
[1726114980151,15.2289,136.53,136.49,23.0775]
[1726114981342,21.7664,136.53,136.47,0.0540665]
[1726114981552,6.5924,136.52,136.47,6.6484665]
[1726114981836,28.3584,136.53,136.48,6.594]
[1726114983136,6.5925,136.52,136.47,23.1350665]
[1726114983833,6.5929,136.51,136.47,23.1350665]
[1726114984034,6.5929,136.51,136.47,16.5402665]
[1726114984642,6.5934,136.5,136.47,0.0540665]
[1726114986332,6.5939,136.49,136.47,0.0540665]
[1726114986531,23.776884,136.52,136.47,0.0540665]
[1726114986942,98.8980109,136.53,136.47,0.0540665]
[1726114986943,6.5934,136.5,136.47,0.0540665]
[1726114988119,48.8980109,136.53,136.47,0.0540665]
[1726114988120,98.8980109,136.53,136.47,0.0540665]
[1726114988319,20.0,136.52,136.47,0.0540665]
[1726114988517,6.5943,136.48,136.47,0.0540665]
[1726114988740,6.5938,136.5,136.47,0.0540665]
[1726114989126,6.5939,136.49,136.47,0.0540665]
[1726114989544,6.5934,136.5,136.47,0.0540665]
[1726114993851,14.25738704,136.5,136.47,0.0540665]
[1726114995957,6.5939,136.49,136.47,0.0540665]
[1726115001129,6.5943,136.48,136.47,0.0540665]
[1726115001956,14.25778704,136.5,136.47,0.0540665]
[1726115003430,7.66398704,136.5,136.47,6.6487665]
[1726115003631,7.66398704,136.5,136.48,6.5943]
[1726115003846,28.3587,136.53,136.48,6.5943]
[1726115004057,28.3587,136.53,136.47,0.0540665]
[1726115004058,6.593,136.51,136.47,0.0540665]
[1726115004541,6.5936,136.5,136.47,0.0540665]
[1726115004731,6.5939,136.49,136.47,0.0540665]
[1726115005155,7.65636133,136.52,136.47,0.0540665]
[1726115005156,6.5943,136.48,136.47,0.0540665]
[1726115006645,22.7952,136.48,136.47,0.0540665]
[1726115007653,22.7952,136.48,136.43,0.2683624]
[1726115007654,42.2044,136.48,136.43,0.2683624]
[1726115007861,22.2044,136.48,136.43,0.2683624]
[1726115008067,6.5963,136.44,136.43,0.2683624]
[1726115012856,26.5963,136.44,136.43,0.2683624]